bitfinex-derivatives/quotes_ETHF0:USTF0_20240920
["timestamp","ask_amount","ask_price","bid_price","bid_amount"]
[1726829110380,0.39148,2554.0,2553.8,0.3915]
[1726829110575,0.39151,2553.9,2553.7,0.39152]
[1726829110777,0.8145,2553.8,2553.7,0.39152]
[1726829110974,0.8145,2553.8,2553.5,0.3825]
[1726829111177,0.8145,2553.8,2553.6,0.39153]
[1726829111378,0.80333,2553.7,2553.6,0.39154]
[1726829111676,0.80333,2553.7,2553.5,0.39154]
[1726829112283,0.80333,2553.7,2553.6,0.39154]
[1726829112985,0.4118,2553.7,2553.6,0.39154]
[1726829113783,0.8145,2553.8,2553.7,0.39152]
[1726829113981,1.20602,2553.8,2553.5,3.4332]
[1726829114176,0.8145,2553.8,2553.7,0.39152]
[1726829114888,1.20601,2553.8,2553.7,0.39152]
[1726829115777,0.8145,2553.8,2553.7,0.39152]
[1726829116179,0.39151,2553.8,2553.7,0.39152]
[1726829116485,0.39151,2553.9,2553.8,0.39151]
[1726829116985,2.16938,2554.1,2553.7,0.39151]
[1726829117186,0.39149,2554.0,2553.9,0.39149]
[1726829117682,1.1907,2554.1,2553.7,3.05]
[1726829117887,0.39148,2554.0,2553.9,0.39148]
[1726829118090,1.58217,2554.1,2554.0,0.39148]
[1726829118679,0.39148,2554.0,2553.9,0.39148]
[1726829119078,0.39149,2553.9,2553.8,0.3915]
[1726829119281,1.58217,2554.1,2553.6,1.74245]
[1726829119483,1.1907,2554.1,2554.0,0.39148]
[1726829120387,0.39143,2554.4,2554.3,0.39143]
[1726829120589,0.77173,2554.4,2554.3,0.39143]
[1726829121381,1.35886,2554.4,2554.1,0.375]
[1726829121585,0.39149,2554.0,2553.9,0.39148]
[1726829122086,0.97864,2554.2,2554.0,0.39147]
[1726829122087,0.39147,2554.1,2554.0,0.39147]
[1726829122283,0.79787,2554.1,2554.0,0.39147]
[1726829123288,0.4064,2554.1,2554.0,0.39147]
[1726829124386,0.79786,2554.1,2554.0,0.39147]
[1726829126284,0.39149,2554.0,2553.9,0.39148]
[1726829126485,1.16139,2554.0,2553.9,0.39148]
[1726829126887,1.16138,2554.0,2553.9,0.39148]
[1726829127086,0.7699,2554.0,2553.9,0.39148]
[1726829127283,7.7351,2554.0,2553.7,3.2078]
[1726829127484,0.39154,2553.7,2553.6,0.39153]
[1726829127686,0.39155,2553.6,2553.5,0.39154]
[1726829127983,0.39155,2553.6,2553.4,7.8007]
[1726829127984,0.39156,2553.5,2553.4,3.2078]
[1726829128179,0.39159,2553.3,2553.2,0.39159]
[1726829129190,0.4104,2553.4,2553.1,3.05]
[1726829129489,0.3916,2553.3,2553.2,0.39159]
[1726829130492,0.3916,2553.2,2553.1,0.39161]
[1726829130691,0.39159,2553.3,2553.2,0.39159]
[1726829131091,0.4104,2553.4,2553.3,0.39159]
[1726829132184,0.80198,2553.4,2553.3,0.39159]
[1726829134582,0.80198,2553.4,2553.1,3.05]
[1726829134780,0.3916,2553.2,2553.1,0.39161]
[1726829137390,0.80198,2553.4,2553.2,0.39159]
[1726829137391,0.3916,2553.3,2553.2,0.39159]
[1726829137587,0.39158,2553.4,2553.3,0.39159]
[1726829138198,0.3786,2553.6,2553.3,3.05]
[1726829138494,0.79861,2553.9,2553.8,0.39149]
[1726829139397,0.39153,2553.8,2553.7,0.39151]
[1726829142099,0.39154,2553.7,2553.6,0.39153]
[1726829142594,0.78284,2553.7,2553.6,0.39153]
[1726829143791,0.78284,2553.7,2553.4,1.37422]
[1726829143792,0.3913,2553.7,2553.4,0.3953]
[1726829143995,0.39155,2553.6,2553.5,0.39154]
[1726829151006,0.77515,2553.6,2553.5,0.39154]
[1726829155208,0.39157,2553.4,2553.3,0.39157]
[1726829155407,0.39159,2553.3,2553.2,0.39159]
[1726829155604,0.79119,2553.3,2553.2,0.39159]
[1726829157102,0.79119,2553.3,2553.0,0.97908]
[1726829157103,0.39163,2553.1,2553.0,0.39162]
[1726829157502,0.76813,2553.1,2553.0,0.39162]
[1726829157904,0.39164,2553.0,2552.9,0.39164]
[1726829158111,0.76813,2553.1,2552.6,4.2265448]
[1726829158313,0.39165,2553.0,2552.9,0.39164]
[1726829158705,0.39165,2552.9,2552.8,0.39165]
[1726829160910,0.39167,2552.8,2552.7,0.39167]
[1726829161209,0.79897,2552.8,2552.7,0.39167]
[1726829161613,0.39168,2552.7,2552.6,3.2078]
[1726829161812,0.79897,2552.8,2552.5,0.4077]
[1726829162116,0.39169,2552.7,2552.6,0.39168]
[1726829162316,0.39169,2552.6,2552.5,0.7994]
[1726829162516,0.39169,2552.6,2552.5,0.3917]
[1726829162919,0.39172,2552.4,2552.3,3.59953]
[1726829163604,1.38662,2552.4,2552.0,1.4298448]
[1726829163810,0.39176,2552.2,2552.1,0.39176]
[1726829164009,0.39175,2552.3,2552.2,0.39175]
[1726829164608,0.39177,2552.2,2551.9,4.6032]
[1726829164812,0.76601,2552.5,2552.1,3.06]
[1726829165007,0.97894,2553.4,2552.4,3.06]
[1726829165211,0.7531,2553.4,2552.9,0.39164]
[1726829165511,0.39161,2553.2,2553.0,0.39163]
[1726829165720,0.7531,2553.4,2553.0,3.06]
[1726829165908,0.39159,2553.3,2553.0,3.06]
[1726829166102,0.39159,2553.3,2553.1,0.39162]
[1726829166306,0.39159,2553.3,2553.0,3.45162]
[1726829166504,0.39159,2553.3,2553.0,0.39163]
[1726829166717,0.39159,2553.3,2553.1,0.39162]
[1726829166913,0.7531,2553.4,2553.0,0.39163]
[1726829167113,0.39162,2553.1,2552.9,0.39165]
[1726829167417,0.378,2553.0,2552.8,0.39165]
[1726829167614,0.76964,2553.0,2552.8,0.39165]
[1726829167920,0.3973,2552.9,2552.7,0.39167]
[1726829168509,7.64426,2552.9,2552.4,1.0187448]
[1726829168712,0.39168,2552.7,2552.2,7.8136]
[1726829168913,1.37646,2552.9,2552.4,0.39172]
[1726829169113,0.39169,2552.7,2552.4,0.39172]
[1726829169619,0.3917,2552.6,2552.4,0.39172]
[1726829170521,0.39171,2552.5,2552.3,0.39173]
[1726829170713,0.39172,2552.5,2552.2,8.20535]
[1726829170914,0.3966,2552.4,2552.2,8.20534]
[1726829171109,0.3966,2552.4,2552.2,7.8136]
[1726829171318,0.39174,2552.3,2552.2,7.4058]
[1726829171524,0.3966,2552.4,2552.0,0.77068]
[1726829171525,0.39176,2552.2,2552.0,0.77068]
[1726829171731,0.76877,2552.2,2552.0,0.39178]
[1726829172021,0.377,2552.2,2551.8,3.2078]
[1726829172225,0.39179,2552.0,2551.7,0.3789]
[1726829172828,0.377,2552.2,2551.8,0.39182]
[1726829173120,0.39181,2551.9,2551.6,4.198]
[1726829173321,0.39182,2551.8,2551.5,3.8472]
[1726829173522,0.39184,2551.7,2551.5,0.39186]
[1726829173728,0.39185,2551.6,2551.4,3.59967]
[1726829173922,1.19454,2551.7,2551.5,0.39186]
[1726829174112,1.19454,2551.7,2551.6,0.39185]
[1726829174113,0.8027,2551.7,2551.6,0.39185]
[1726829174315,4.03934,2552.4,2551.9,0.3918]
[1726829174524,0.39179,2552.0,2551.8,0.39181]
[1726829176019,0.39178,2552.1,2551.8,0.39181]
[1726829176218,0.39179,2552.0,2551.8,0.39181]
[1726829176523,0.39178,2552.1,2551.8,0.3918]
[1726829176717,0.39178,2552.1,2551.9,0.3918]
[1726829176921,0.39179,2552.0,2551.9,0.3918]
[1726829177119,4.98986,2552.3,2551.9,0.3918]
[1726829177314,0.39179,2552.0,2551.8,0.39181]
[1726829178423,0.39179,2552.0,2551.9,0.3918]
[1726829179829,0.39178,2552.1,2551.9,0.3918]
[1726829180024,4.98986,2552.3,2551.9,0.3918]
[1726829180323,0.3918,2551.9,2551.7,0.39182]
[1726829180530,0.3979,2551.8,2551.7,0.39182]
[1726829181215,0.7917,2551.8,2551.7,0.39182]
[1726829186120,3.06,2552.2,2552.0,0.39178]
[1726829186328,0.7562,2552.1,2552.0,0.39178]
[1726829186631,0.3804,2552.1,2552.0,0.39178]
[1726829186831,0.7649,2552.3,2552.2,0.39176]
[1726829187028,0.3758,2552.3,2552.2,0.39176]
[1726829187220,0.3804,2552.4,2552.3,0.39174]
[1726829187427,3.2078,2552.6,2552.5,0.39171]
[1726829193226,3.5995,2552.6,2552.5,0.39171]
[1726829193425,3.2078,2552.6,2552.5,0.39171]
[1726829193621,3.2078,2552.6,2552.4,0.39171]
[1726829193821,3.5995,2552.6,2552.2,1.80199]
[1726829194122,3.06,2552.4,2551.9,4.581]
[1726829194325,1.56255,2552.3,2551.9,4.581]
[1726829194630,1.56255,2552.3,2552.1,0.39177]
[1726829195134,1.1708,2552.3,2552.0,0.39178]
[1726829195331,2.15016,2552.3,2551.9,4.198]
[1726829195628,0.39177,2552.1,2552.0,0.39179]
[1726829195931,0.39177,2552.1,2551.9,4.198]
[1726829196534,0.39176,2552.2,2552.0,0.39177]
[1726829196726,40.8,2552.1,2552.0,0.39177]
[1726829213545,41.19177,2552.1,2551.7,5.2061248]
[1726829213739,0.39179,2552.0,2551.9,0.39179]
[1726829213934,0.39181,2551.9,2551.8,0.39181]
[1726829214138,1.53901,2551.9,2551.8,0.39181]
[1726829216438,2.51852,2551.9,2551.8,0.39181]
[1726829217642,1.53901,2551.9,2551.8,0.39181]
[1726829218438,0.39183,2551.8,2551.7,0.39182]
[1726829218634,0.39185,2551.7,2551.6,0.39183]
[1726829218846,0.39186,2551.6,2551.5,0.39185]
[1726829219940,0.97959,2551.8,2551.4,4.5845]
[1726829219941,0.39184,2551.7,2551.6,0.39183]
[1726829220442,0.39186,2551.6,2551.5,0.39185]
[1726829220646,0.39186,2551.5,2551.4,0.39187]
[1726829220839,0.39189,2551.4,2551.3,0.39188]
[1726829222343,1.56128,2551.5,2551.4,0.39188]
[1726829223042,0.39189,2551.4,2551.3,0.39188]
[1726829223349,1.56128,2551.5,2551.4,0.39188]
[1726829223550,0.7859,2551.5,2551.4,0.39188]
[1726829223751,0.97953,2551.9,2551.6,0.39183]
[1726829223944,1.78343,2551.9,2551.4,0.4109]
[1726829224140,1.78343,2551.9,2551.8,0.39182]
[1726829224141,0.8039,2551.9,2551.8,0.39182]
[1726829228350,1.1957,2551.9,2551.8,0.39182]
[1726829228652,0.8039,2551.9,2551.8,0.39182]
[1726829229247,1.1957,2551.9,2551.8,0.39182]
[1726829230949,1.1957,2551.9,2551.7,0.39183]
[1726829230950,0.39183,2551.8,2551.7,0.39183]
[1726829232153,0.39183,2551.7,2551.6,3.59964]
[1726829232945,0.39183,2551.8,2551.7,0.39182]
[1726829233455,4.31103,2551.8,2551.7,0.39182]
[1726829233649,3.9192,2551.8,2551.7,0.39182]
[1726829234451,4.31102,2551.8,2551.7,0.39182]
[1726829235952,1.37142,2551.7,2551.6,0.39184]
[1726829236263,0.39185,2551.7,2551.6,0.39183]
[1726829240055,0.39183,2551.8,2551.7,0.39182]
[1726829240251,4.25571,2551.9,2551.8,0.39182]
[1726829240557,0.8039,2551.9,2551.8,0.39182]
[1726829240953,1.1957,2551.9,2551.8,0.39182]
[1726829241150,0.8039,2551.9,2551.8,0.39182]
[1726829242958,1.1957,2551.9,2551.8,0.39182]
[1726829243761,0.8039,2551.9,2551.8,0.39182]
[1726829243953,0.8039,2551.9,2551.8,1.37137]
[1726829244159,0.39171,2552.5,2552.4,0.39171]
[1726829244356,3.6018,2552.5,2552.4,0.39171]
[1726829244575,0.394,2552.5,2552.4,0.39171]
[1726829244955,0.78571,2552.5,2552.4,0.39171]
[1726829245156,0.394,2552.5,2552.4,0.39171]
[1726829245553,0.7808,2552.5,2552.4,0.39171]
[1726829247865,1.17251,2552.5,2552.4,0.39171]
[1726829248176,0.4052,2552.6,2552.5,1.37099]
[1726829248468,0.4052,2552.6,2552.3,0.3994]
[1726829248469,0.4101,2552.8,2552.7,0.39168]
[1726829248855,0.8122,2552.8,2552.7,0.39168]
[1726829254866,0.8122,2552.8,2552.4,0.781]
[1726829255079,0.39168,2552.7,2552.6,0.39169]
[1726829255368,4.26387,2552.8,2552.3,1.37874]
[1726829255575,4.26387,2552.8,2552.7,0.39168]
[1726829255965,45.06387,2552.8,2552.7,0.39168]
[1726829256969,0.39168,2552.7,2552.6,0.39168]
[1726829257174,0.39168,2552.7,2552.2,1.78929]
[1726829257175,0.39171,2552.6,2552.2,0.9794]
[1726829257481,0.3833,2552.5,2552.4,0.39172]
[1726829259586,0.77501,2552.5,2552.4,0.39172]
[1726829259777,0.3833,2552.5,2552.4,0.39172]
[1726829261175,0.77501,2552.5,2552.4,0.39172]
[1726829262377,41.57501,2552.5,2552.4,0.39172]
[1726829262579,41.1833,2552.5,2552.4,0.39172]
[1726829263677,41.57501,2552.5,2552.4,0.39172]
[1726829264478,41.1833,2552.5,2552.4,0.39172]
[1726829265380,41.57501,2552.5,2552.4,0.39172]
[1726829266468,40.8,2552.5,2552.4,0.39172]
[1726829266675,0.39171,2552.6,2552.5,0.39171]
[1726829267182,41.19171,2552.6,2552.5,0.39171]
[1726829268683,0.39172,2552.5,2552.4,0.39171]
[1726829269275,1.8017,2552.6,2552.5,0.39171]
[1726829281784,2.78094,2552.6,2552.5,0.39171]
[1726829282684,0.39173,2552.5,2552.4,0.39171]
[1726829287988,0.39175,2552.4,2552.3,0.39173]
[1726829288188,0.39179,2552.0,2551.9,2.546862]
[1726829288397,1.37126,2552.0,2551.9,0.3918]
[1726829288993,2.15836,2552.0,2551.9,0.3918]
[1726829289190,0.39183,2551.8,2551.7,0.39182]
[1726829289390,1.80183,2551.8,2551.7,0.39182]
[1726829290090,1.41,2551.8,2551.7,0.39182]
[1726829290291,0.80491,2551.9,2551.8,0.39182]
[1726829292184,0.39177,2552.2,2552.1,0.39176]
[1726829292492,0.39175,2552.3,2552.2,0.39173]
[1726829293496,0.39175,2552.3,2552.0,2.79096]
[1726829293497,0.39174,2552.4,2552.3,0.39172]
[1726829294789,0.39176,2552.3,2552.2,0.39174]
[1726829296096,1.1987,2552.6,2552.2,1.41]
[1726829296392,1.1987,2552.6,2552.5,0.39171]
[1726829296393,1.5904,2552.6,2552.5,0.39171]
[1726829296589,1.5904,2552.6,2552.5,1.80171]
[1726829296785,1.5904,2552.6,2552.5,0.39171]
[1726829297598,0.39171,2552.5,2552.4,0.79711]
[1726829299689,1.1987,2552.6,2552.5,0.39171]
[1726829299897,0.79,2552.6,2552.5,0.39171]
[1726829300792,1.18169,2552.6,2552.5,0.39171]
[1726829301194,0.3858,2552.6,2552.5,0.39171]
[1726829301392,0.39169,2552.7,2552.6,0.39169]
[1726829301894,0.79459,2552.7,2552.6,0.39169]
[1726829310998,1.77379,2552.7,2552.6,0.39169]
[1726829315299,0.39171,2552.6,2552.5,0.3917]
[1726829315499,0.39171,2552.6,2552.4,0.4054]
[1726829315697,0.39171,2552.6,2552.3,1.41]
[1726829315698,1.37104,2552.4,2552.3,0.39174]
[1726829315904,0.39172,2552.4,2552.3,0.39174]
[1726829316203,0.39176,2552.3,2552.2,0.39174]
[1726829316502,0.76996,2552.3,2552.2,0.39174]
[1726829316703,0.76996,2552.3,2552.0,1.0187448]
[1726829316704,0.39176,2552.2,2552.0,1.0187448]
[1726829317011,1.41,2552.1,2551.9,0.39179]
[1726829317203,0.7995,2552.0,2551.9,0.39179]
[1726829317508,1.1862,2552.0,2551.9,0.39179]
[1726829319409,0.39181,2551.9,2551.8,0.3918]
[1726829319616,0.79971,2551.9,2551.8,0.3918]
[1726829323021,0.4079,2551.9,2551.8,1.8018]
[1726829323317,0.7997,2551.9,2551.8,1.8018]
[1726829325718,0.4079,2551.9,2551.8,1.8018]
[1726829326716,0.7997,2551.9,2551.8,1.8018]
[1726829328218,0.4079,2551.9,2551.8,1.8018]
[1726829328621,0.7997,2551.9,2551.8,1.8018]
[1726829332613,0.7997,2551.9,2551.8,0.3918]
[1726829336520,1.77921,2551.9,2551.8,0.3918]
[1726829336922,0.7997,2551.9,2551.8,0.3918]
[1726829337521,0.7997,2551.9,2551.8,1.8018]
[1726829340424,0.7997,2551.9,2551.8,0.3918]
[1726829341723,0.7997,2551.9,2551.8,1.37135]
[1726829341724,0.4079,2551.9,2551.8,1.37135]
[1726829341925,0.39177,2552.2,2552.1,0.39177]
[1726829342130,0.79907,2552.2,2552.1,0.39177]
[1726829343328,3.18847,2552.2,2552.1,0.39177]
[1726829344540,1.77847,2552.2,2552.1,0.39177]
[1726829345132,0.79907,2552.2,2552.1,0.39177]
[1726829345336,1.77847,2552.2,2552.1,0.39177]
[1726829345639,0.39181,2552.0,2551.9,0.39179]
[1726829346940,1.17329,2552.1,2552.0,0.39179]
[1726829349938,1.37128,2552.0,2551.9,0.39179]
[1726829350132,0.39182,2551.9,2551.8,0.3918]
[1726829351440,1.37133,2551.9,2551.8,0.3918]
[1726829351639,0.39182,2551.9,2551.8,0.3918]
[1726829357544,0.97947,2552.0,2551.9,0.39179]
[1726829357545,0.3918,2552.0,2551.9,0.39179]
[1726829357741,1.76093,2552.1,2552.0,0.39179]
[1726829357742,1.17328,2552.1,2552.0,0.39179]
[1726829363249,1.17328,2552.1,2552.0,1.4105348]
[1726829363647,1.17328,2552.1,2552.0,0.39179]
[1726829363841,0.7815,2552.1,2552.0,1.4105348]
[1726829364148,0.79907,2552.2,2552.1,0.39177]
[1726829364149,0.79906,2552.2,2552.1,0.39177]
[1726829366950,1.77846,2552.2,2552.1,0.39177]
[1726829367545,0.79906,2552.2,2552.1,0.39177]
[1726829378565,1.77846,2552.2,2552.1,0.39177]
[1726829380960,0.39179,2552.1,2552.0,0.39177]
[1726829381163,1.18609,2552.1,2552.0,0.39177]
[1726829388070,1.18609,2552.1,2552.0,1.4105148]
[1726829388674,1.18609,2552.1,2552.0,0.39177]
[1726829392872,0.3877,2552.1,2552.0,0.39177]
[1726829393073,0.3877,2552.1,2552.0,2.78124]
[1726829397074,0.39167,2552.8,2552.7,0.39167]
[1726829397278,0.39168,2552.7,2552.6,0.39169]
[1726829397476,5.11557,2552.8,2552.7,0.39168]
[1726829397685,1.19797,2552.8,2552.7,0.39168]
[1726829397872,5.11557,2552.8,2552.7,0.39168]
[1726829398077,1.19797,2552.8,2552.7,0.39168]
[1726829398479,1.60897,2552.8,2552.7,0.39168]
[1726829400171,1.60896,2552.8,2552.7,0.39168]
[1726829400481,0.97903,2553.2,2553.1,0.39161]
[1726829400482,0.39162,2553.2,2553.1,0.39161]
[1726829400784,1.58352,2553.2,2553.1,0.39161]
[1726829401489,1.1919,2553.2,2553.0,1.41]
[1726829401685,1.58351,2553.2,2553.1,0.39162]
[1726829401870,1.1919,2553.2,2553.1,0.39162]
[1726829402271,0.8023,2553.2,2553.1,1.80162]
[1726829402476,0.3922,2553.2,2553.1,1.80162]
[1726829404777,0.79097,2553.5,2553.4,0.39157]
[1726829404978,0.79097,2553.5,2553.3,1.80157]
[1726829404979,0.39157,2553.4,2553.3,1.80157]
[1726829405295,0.39157,2553.4,2553.3,0.39157]
[1726829405897,4.89574,2553.4,2552.7,4.18699]
[1726829406090,0.39163,2553.1,2553.0,0.39162]
[1726829406399,0.39161,2553.2,2553.1,0.39161]
[1726829407394,0.768,2553.3,2553.2,0.3916]
[1726829407598,0.3764,2553.3,2553.2,0.3916]
[1726829410697,0.39162,2553.1,2553.0,0.39162]
[1726829410895,1.41,2553.2,2552.6,5.59703]
[1726829411200,1.80165,2552.9,2552.8,0.39166]
[1726829411590,2.20725,2552.9,2552.8,0.39166]
[1726829411902,0.4056,2552.9,2552.8,0.39166]
[1726829417299,0.413,2553.0,2552.9,0.39165]
[1726829417501,0.80463,2553.0,2552.9,3.59945]
[1726829418199,0.80463,2553.0,2552.9,0.39165]
[1726829418400,0.80463,2553.0,2552.9,3.59945]
[1726829418601,0.413,2553.0,2552.9,3.59945]
[1726829418800,0.413,2553.0,2552.9,6.65945]
[1726829419004,3.59937,2553.5,2553.1,0.97905]
[1726829419203,0.7953,2553.4,2553.3,0.39159]
[1726829419392,1.1844,2553.4,2553.3,0.39159]
[1726829419597,1.57598,2553.4,2553.3,0.39159]
[1726829419905,0.39159,2553.3,2553.2,0.39159]
[1726829421606,1.57598,2553.4,2553.3,0.39159]
[1726829421903,0.39159,2553.3,2553.2,0.39159]
[1726829424207,2.16334,2553.4,2553.1,0.39161]
[1726829424208,0.39161,2553.2,2553.1,0.39161]
[1726829424597,0.39159,2553.3,2552.9,6.2678]
[1726829424797,0.39163,2553.0,2552.7,4.198]
[1726829425008,1.17335,2552.9,2552.8,0.39166]
[1726829425711,0.7817,2552.9,2552.8,0.39166]
[1726829429511,0.7817,2552.9,2552.8,3.45166]
[1726829432315,1.17335,2552.9,2552.8,3.45166]
[1726829432812,1.17335,2552.9,2552.8,3.06]
[1726829433013,0.7817,2552.9,2552.7,0.39167]
[1726829433219,0.3979,2552.8,2552.7,0.39167]
[1726829434013,0.3979,2552.8,2552.7,1.80167]
[1726829434719,0.78956,2552.8,2552.7,1.80167]
[1726829435016,0.3979,2552.8,2552.7,1.80167]
[1726829435712,0.78956,2552.8,2552.7,1.41]
[1726829436015,0.78956,2552.8,2552.7,0.39168]
[1726829436214,1.37708,2552.8,2552.5,3.2078]
[1726829436422,1.37708,2552.8,2552.0,0.365]
[1726829436423,0.97928,2552.5,2552.0,0.365]
[1726829436722,0.97928,2552.5,2551.9,3.2078]
[1726829436723,0.39179,2552.0,2551.9,3.2078]
[1726829437017,0.9794,2552.2,2551.9,3.59959]
[1726829437018,0.39178,2552.1,2551.9,3.59959]
[1726829437210,0.3844,2552.0,2551.9,3.59959]
[1726829437411,0.775,2552.0,2551.9,3.59959]
[1726829437713,1.16679,2552.0,2551.7,0.39183]
[1726829437912,1.16679,2552.0,2551.6,0.39184]
[1726829437913,0.39182,2551.8,2551.6,0.39184]
[1726829438117,0.39182,2551.8,2551.5,6.2678]
[1726829438303,0.3849,2551.9,2551.7,0.39183]
[1726829438509,0.77671,2551.9,2551.7,0.39183]
[1726829439114,0.39182,2551.8,2551.6,0.39184]
[1726829439515,0.77671,2551.9,2551.7,0.39182]
[1726829440519,0.77671,2551.9,2551.7,3.45182]
[1726829442420,0.77671,2551.9,2551.7,3.06]
[1726829442421,0.39182,2551.8,2551.7,3.06]
[1726829442808,0.77671,2551.9,2551.7,3.45183]
[1726829444119,0.77671,2551.9,2551.7,0.39183]
[1726829444811,0.39182,2551.8,2551.5,6.2678]
[1726829445010,0.39182,2551.8,2551.7,0.39183]
[1726829445213,0.77671,2551.9,2551.7,0.39183]
[1726829446114,0.39182,2551.8,2551.7,0.39183]
[1726829446611,0.77671,2551.9,2551.7,0.39183]
[1726829446819,0.39183,2551.8,2551.6,0.39184]
[1726829448219,0.39183,2551.8,2551.7,0.39183]
[1726829448519,0.39183,2551.8,2551.6,0.39184]
[1726829449418,0.3849,2551.9,2551.7,0.39183]
[1726829449419,0.77671,2551.9,2551.7,0.39183]
[1726829449620,0.39182,2551.8,2551.7,0.39183]
[1726829449819,0.39182,2551.8,2551.6,0.39184]
[1726829450013,0.39183,2551.8,2551.6,0.39184]
[1726829450316,0.39183,2551.7,2551.6,0.39184]
[1726829450518,0.39182,2551.8,2551.6,0.39184]
[1726829451114,0.39182,2551.8,2551.7,0.39183]
[1726829451319,0.39182,2551.8,2551.6,0.39183]
[1726829451622,0.39182,2551.8,2551.6,0.39185]
[1726829452722,0.3849,2551.9,2551.5,3.45185]
[1726829452923,0.39182,2551.8,2551.6,0.39184]
[1726829453125,0.3849,2551.9,2551.5,3.06]
[1726829453317,0.39182,2551.8,2551.6,0.39184]
[1726829454024,1.36441,2551.9,2551.5,3.45186]
[1726829454224,0.39183,2551.7,2551.5,3.45186]
[1726829454427,0.39183,2551.8,2551.6,0.39185]
[1726829455628,1.36441,2551.9,2551.6,0.39185]
[1726829455827,0.39182,2551.8,2551.6,0.39185]
[1726829456327,0.39183,2551.8,2551.6,0.39185]
[1726829458126,0.39183,2551.8,2551.6,1.80185]
[1726829458322,0.39183,2551.8,2551.6,1.80184]
[1726829458521,0.39183,2551.8,2551.6,1.41]
[1726829458825,0.39183,2551.7,2551.6,1.41]
[1726829459028,0.39182,2551.8,2551.6,1.80183]
[1726829460027,0.39183,2551.8,2551.6,1.80185]
[1726829460326,4.18739,2551.7,2551.3,1.41]
[1726829460529,0.39187,2551.5,2551.3,1.80188]
[1726829460825,0.39187,2551.5,2551.3,1.41]
[1726829461020,0.77977,2551.5,2551.3,1.41]
[1726829461534,0.77977,2551.5,2551.3,1.80188]
[1726829461933,0.7765,2551.6,2551.4,1.80187]
[1726829461934,0.78215,2551.6,2551.4,1.80187]
[1726829462136,0.9796,2551.7,2551.4,1.41]
[1726829462429,0.39186,2551.6,2551.5,0.39186]
[1726829462620,0.39186,2551.6,2551.4,1.80187]
[1726829463229,0.7782,2551.7,2551.4,1.41]
[1726829463427,0.78911,2551.9,2551.7,0.39183]
[1726829463728,0.78911,2551.9,2551.4,4.18749]
[1726829463729,1.18311,2551.9,2551.8,1.41]
[1726829470235,0.39182,2551.8,2551.7,0.77013]
[1726829472932,0.39182,2551.8,2551.7,0.3783]
[1726829475441,0.39182,2551.8,2551.7,0.77012]
[1726829476139,0.39182,2551.8,2551.7,0.3783]
[1726829478037,0.39182,2551.8,2551.7,0.77013]
[1726829478638,0.39182,2551.8,2551.7,0.3783]
[1726829478845,0.78581,2551.9,2551.8,0.39182]
[1726829479039,44.921,2552.9,2551.8,1.41]
[1726829479243,0.39176,2552.2,2552.1,1.41]
[1726829479438,0.39176,2552.2,2552.1,1.80177]
[1726829480136,0.39175,2552.3,2552.2,0.39175]
[1726829480439,0.39175,2552.3,2552.1,1.41]
[1726829480440,0.39176,2552.2,2552.1,1.80176]
[1726829482244,0.39176,2552.2,2552.1,1.80177]
[1726829485148,0.97943,2552.1,2551.9,0.39178]
[1726829485343,0.7677,2552.0,2551.9,0.39178]
[1726829485548,1.165,2552.0,2551.9,1.80178]
[1726829486448,1.55679,2552.0,2551.9,1.80178]
[1726829491554,0.39176,2552.2,2551.9,1.41]
[1726829491851,0.3918,2552.3,2552.2,0.39176]
[1726829492241,0.7894,2552.4,2552.3,0.39174]
[1726829492443,0.3913,2552.4,2552.3,1.80174]
[1726829492644,0.3913,2552.4,2552.3,2.19214]
[1726829494449,0.3917,2552.6,2552.3,4.47366051]
[1726829494658,0.7767,2552.5,2552.4,0.39172]
[1726829494957,1.16841,2552.5,2552.4,1.41]
[1726829495154,1.16841,2552.5,2552.4,1.80172]
[1726829496651,0.7767,2552.5,2552.4,1.80172]
[1726829497451,1.16841,2552.5,2552.4,1.80172]
[1726829497652,1.16841,2552.5,2552.4,0.39172]
[1726829503960,1.75598,2552.5,2552.1,3.2078]
[1726829504164,1.75598,2552.5,2551.9,2.5076272]
[1726829504165,0.39177,2552.3,2552.2,0.39174]
[1726829504365,0.39177,2552.3,2552.2,1.80174]
[1726829504562,0.7767,2552.5,2552.4,0.39172]
[1726829504769,0.7767,2552.5,2552.4,1.80172]
[1726829505060,1.16841,2552.5,2552.4,1.80172]
[1726829505462,1.16841,2552.5,2552.4,0.39172]
[1726829506056,0.7767,2552.5,2552.4,0.39172]
[1726829506361,1.16841,2552.5,2552.4,0.39172]
[1726829509065,0.39172,2552.4,2552.3,1.80173]
[1726829510961,1.16842,2552.5,2552.4,0.39172]
[1726829512364,0.39172,2552.4,2552.3,1.80173]
[1726829513272,1.16842,2552.5,2552.4,0.39172]
[1726829513770,0.39172,2552.4,2552.3,1.80173]
[1726829514764,0.39174,2552.4,2552.3,0.39173]
[1726829514971,0.39174,2552.3,2552.2,1.80174]
[1726829515467,0.39174,2552.3,2552.2,0.39174]
[1726829518968,0.39174,2552.3,2551.9,1.9260172]
[1726829518969,5.3284,2552.3,2551.9,1.0187448]
[1726829519168,1.41,2552.1,2551.7,4.6183748]
[1726829519466,0.39182,2551.8,2551.7,3.2078]